fUSD/lending_fUSD_20240223
["ID","MTS","AMOUNT","RATE_DAILY","PERIOD"]
[314994532,1708719059082,-1246.55,0.00029589,2]
[314994533,1708719059092,-500.0,0.00029589,2]
[314994534,1708719059101,-832.75,0.00029589,2]
[314994535,1708719059111,-1577.02,0.00029589,2]
[314994536,1708719059120,-894.62,0.00029589,2]
[314994537,1708719059129,-711.78,0.00029589,2]
[314994538,1708719059138,-896.26,0.00029589,2]
[314994539,1708719059148,-578.28,0.00029589,2]
[314994540,1708719059157,-2223.06,0.00029589,2]
[314994541,1708719059166,-640.46,0.00029589,2]
[314994542,1708719059175,-500.0,0.00029589,2]
[314994543,1708719059185,-1048.34,0.00029589,2]
[314994544,1708719059194,-1844.58,0.00029589,2]
[314994545,1708719059204,-1034.24,0.00029589,2]
[314994546,1708719059213,-2164.75,0.00029589,2]
[314994547,1708719059222,-1226.41,0.00029589,2]
[314994548,1708719059231,-4390.56,0.00029589,2]
[314994549,1708719059240,-748.66,0.00029589,2]
[314994550,1708719059250,-677.35,0.00029589,2]
[314994551,1708719059260,-11820.79653812,0.0002961,7]
[314994552,1708719059269,-5703.8557195,0.0002961,7]
[314994553,1708719059279,-256.67350737,0.0002961,6]
[314994554,1708719059289,-218.70513319,0.0002961,6]
[314994555,1708719059298,-153.045374,0.0002961,6]
[314994556,1708719059309,-237.78305309,0.0002961,6]
[314994557,1708719059318,-500.0,0.00029724,2]
[314994558,1708719059328,-373.11863572,0.00029724,2]
[314994559,1708719059338,-500.0,0.00029724,2]
[314994560,1708719059347,-253.07012665,0.00029725,2]
[314994561,1708719059357,-500.0,0.00029725,2]
[314994562,1708719059366,-500.0,0.00029725,2]
[314994563,1708719059376,-504.00564348,0.00029726,2]
[314994564,1708719059386,-530.13,0.00029726,2]
[314994565,1708719059396,-749.44,0.00029726,2]
[314994566,1708719059406,-569.85,0.00029726,2]
[314994567,1708719059416,-792.79,0.00029726,2]
[314994568,1708719059425,-670.47,0.00029726,2]
[314994569,1708719059434,-620.91,0.00029726,2]
[314994570,1708719059444,-500.0,0.00029726,2]
[314994571,1708719059453,-637.71,0.00029726,2]
[314994572,1708719059464,-783.78,0.00029726,2]
[314994573,1708719059474,-616.52,0.00029726,2]
[314994574,1708719059483,-1246.55,0.00029726,2]
[314994575,1708719059493,-500.0,0.00029726,2]
[314994576,1708719059503,-832.75,0.00029726,2]
[314994577,1708719059512,-1577.02,0.00029726,2]
[314994578,1708719059522,-894.62,0.00029726,2]
[314994579,1708719059531,-711.78,0.00029726,2]
[314994580,1708719059541,-896.26,0.00029726,2]
[314994581,1708719059550,-578.28,0.00029726,2]
[314994582,1708719059559,-2223.06,0.00029726,2]
[314994583,1708719059569,-640.46,0.00029726,2]
[314994584,1708719059579,-500.0,0.00029726,2]
[314994585,1708719059589,-1048.34,0.00029726,2]
[314994586,1708719059598,-1844.58,0.00029726,2]
[314994587,1708719059609,-1034.24,0.00029726,2]
[314994588,1708719059619,-2164.75,0.00029726,2]
[314994589,1708719059628,-1226.41,0.00029726,2]
[314994590,1708719059638,-4390.56,0.00029726,2]
[314994591,1708719059648,-748.66,0.00029726,2]
[314994592,1708719059658,-677.35,0.00029726,2]
[314994593,1708719059668,-3000.0,0.000298,2]
[314994594,1708719059678,-275.5,0.000298,2]
[314994595,1708719059688,-17042.69633286,0.00029841,2]
[314994596,1708719059697,-5746.99589315,0.00029841,2]
[314994597,1708719059707,-223.814295,0.00029854,2]
[314994598,1708719059717,-152.546292,0.00029854,2]
[314994599,1708719059727,-155.007164,0.00029854,2]
[314994600,1708719059738,-500.0,0.00029861,2]
[314994601,1708719059749,-500.0,0.00029861,2]
[314994602,1708719059758,-500.0,0.00029862,2]
[314994603,1708719059768,-500.0,0.00029862,2]
[314994604,1708719059779,-530.13,0.00029863,2]
[314994605,1708719059788,-749.44,0.00029863,2]
[314994606,1708719059798,-569.85,0.00029863,2]
[314994607,1708719059807,-792.79,0.00029863,2]
[314994608,1708719059818,-670.47,0.00029863,2]
[314994609,1708719059830,-620.91,0.00029863,2]
[314994610,1708719059841,-500.0,0.00029863,2]
[314994611,1708719059852,-637.71,0.00029863,2]
[314994612,1708719059864,-783.78,0.00029863,2]
[314994613,1708719059874,-616.52,0.00029863,2]
[314994614,1708719059883,-1246.55,0.00029863,2]
[314994615,1708719059893,-500.0,0.00029863,2]
[314994616,1708719059903,-832.75,0.00029863,2]
[314994617,1708719059912,-1577.02,0.00029863,2]
[314994618,1708719059922,-894.62,0.00029863,2]
[314994619,1708719059936,-711.78,0.00029863,2]
[314994620,1708719059945,-896.26,0.00029863,2]
[314994621,1708719059956,-578.28,0.00029863,2]
[314994622,1708719059968,-2223.06,0.00029863,2]
[314994623,1708719059979,-640.46,0.00029863,2]
[314994624,1708719059989,-500.0,0.00029863,2]
[314994625,1708719059999,-1048.34,0.00029863,2]
[314994626,1708719060010,-1844.58,0.00029863,2]
[314994627,1708719060019,-1034.24,0.00029863,2]
[314994628,1708719060029,-2164.75,0.00029863,2]
[314994629,1708719060038,-1226.41,0.00029863,2]
[314994630,1708719060048,-4390.56,0.00029863,2]
[314994631,1708719060057,-748.66,0.00029863,2]
[314994632,1708719060067,-677.35,0.00029863,2]
[314994633,1708719060077,-473299.59414746,0.0002988,2]
[314994634,1708719060087,-1853.54418678,0.000299,2]
[314994635,1708719060097,-700.0,0.0002997,2]
[314994636,1708719060107,-1372.22651836,0.0002997,2]
[314994637,1708719060117,-400.0,0.0002997,2]
[314994638,1708719060126,-449.90602785,0.0002997,2]
[314994639,1708719060136,-186.511912,0.00029977,2]
[314994640,1708719060146,-500.0,0.00029998,2]
[314994641,1708719060156,-500.0,0.00029998,2]
[314994642,1708719060167,-783.35751895,0.00029999,2]
[314994643,1708719060177,-500.0,0.00029999,2]
[314994644,1708719060186,-530.13,0.00029999,2]
[314994645,1708719060196,-500.0,0.00029999,2]
[314994646,1708719060205,-749.44,0.00029999,2]
[314994647,1708719060215,-569.85,0.00029999,2]
[314994648,1708719060225,-792.79,0.00029999,2]
[314994649,1708719060235,-670.47,0.00029999,2]
[314994650,1708719060246,-620.91,0.00029999,2]
[314994651,1708719060255,-500.0,0.00029999,2]
[314994652,1708719060265,-637.71,0.00029999,2]
[314994653,1708719060274,-783.78,0.00029999,2]
[314994654,1708719060287,-616.52,0.00029999,2]
[314994655,1708719060297,-1246.55,0.00029999,2]
[314994656,1708719060306,-500.0,0.00029999,2]
[314994657,1708719060316,-832.75,0.00029999,2]
[314994658,1708719060326,-1577.02,0.00029999,2]
[314994659,1708719060336,-894.62,0.00029999,2]
[314994660,1708719060346,-711.78,0.00029999,2]
[314994661,1708719060356,-896.26,0.00029999,2]
[314994662,1708719060366,-578.28,0.00029999,2]
[314994663,1708719060376,-2223.06,0.00029999,2]
[314994664,1708719060386,-640.46,0.00029999,2]
[314994665,1708719060396,-500.0,0.00029999,2]
[314994666,1708719060406,-1048.34,0.00029999,2]
[314994667,1708719060416,-1844.58,0.00029999,2]
[314994668,1708719060425,-1034.24,0.00029999,2]
[314994669,1708719060435,-2164.75,0.00029999,2]
[314994670,1708719060445,-1226.41,0.00029999,2]
[314994671,1708719060456,-4390.56,0.00029999,2]
[314994672,1708719060466,-748.66,0.00029999,2]
[314994673,1708719060476,-500.0,0.00029999,2]
[314994674,1708719060486,-500.0,0.00029999,2]
[314994675,1708719060497,-328.57882666,0.00029999,2]
[314994676,1708719060507,-577.36949432,0.00029999,2]
[314994677,1708719060518,-500.0,0.00029999,2]
[314994678,1708719060529,-641.20178618,0.00029999,2]
[314994679,1708719060539,-500.0,0.00029999,2]
[314994680,1708719060551,-219.94653771,0.00029999,2]
[314994681,1708719060561,-500.0,0.00029999,2]
[314994682,1708719060571,-500.0,0.00029999,2]
[314994683,1708719060582,-348.95846687,0.00029999,2]
[314994684,1708719060593,-500.0,0.00029999,2]
[314994685,1708719060603,-329.58300539,0.00029999,2]
[314994686,1708719060614,-601.37594501,0.00029999,2]
[314994687,1708719060625,-677.35,0.00029999,2]
[314994688,1708719060635,-279.5022437,0.0003,120]
[314994689,1708719060645,-430.7049708,0.0003,2]
[314994690,1708719060655,-5655.18759748,0.0003,4]
[314994691,1708719060666,-14103.83484867,0.0003,2]
[314994692,1708719060675,-63616.14007185,0.0003,4]
[314994693,1708719060685,-1560.41678267,0.0003,4]
[314994694,1708719060695,-8950.16,0.0003,2]
[314994695,1708719060705,-200.0,0.0003,2]
[314994696,1708719060715,-3000.0,0.0003,2]
[314994697,1708719060725,-200.0,0.0003,2]
[314994698,1708719060735,-70370.3508957,0.0003,2]
[314994699,1708719060746,-311.0,0.0003,18]
[314994700,1708719060755,-200.0,0.0003,2]
[314994701,1708719060766,-5522.066767,0.0003001,2]
[314994702,1708719060775,-1261.52425531,0.000301,2]
[314994703,1708719060785,-158.53,0.00030112,2]
[314994704,1708719060795,-920.0,0.00030127,2]
[314994705,1708719060804,-500.0,0.00030135,2]
[314994706,1708719060815,-500.0,0.00030136,2]
[314994707,1708719060825,-530.13,0.00030136,2]
[314994708,1708719060835,-456.48196893,0.00030136,2]
[314994709,1708719060845,-749.44,0.00030136,2]
[314994710,1708719060854,-569.85,0.00030136,2]
[314994711,1708719060864,-792.79,0.00030136,2]
[314994712,1708719060873,-670.47,0.00030136,2]
[314994713,1708719060883,-620.91,0.00030136,2]
[314994714,1708719060892,-500.0,0.00030136,2]
[314994715,1708719060902,-637.71,0.00030136,2]
[314994716,1708719060912,-783.78,0.00030136,2]
[314994717,1708719060922,-616.52,0.00030136,2]
[314994718,1708719060935,-1246.55,0.00030136,2]
[314994719,1708719060944,-500.0,0.00030136,2]
[314994720,1708719060954,-832.75,0.00030136,2]
[314994721,1708719060963,-1577.02,0.00030136,2]
[314994722,1708719060974,-894.62,0.00030136,2]
[314994723,1708719060984,-711.78,0.00030136,2]
[314994724,1708719060995,-896.26,0.00030136,2]
[314994725,1708719061006,-578.28,0.00030136,2]
[314994726,1708719061016,-2223.06,0.00030136,2]
[314994727,1708719061026,-640.46,0.00030136,2]
[314994728,1708719061036,-500.0,0.00030136,2]
[314994729,1708719061045,-1048.34,0.00030136,2]
[314994730,1708719061055,-1844.58,0.00030136,2]
[314994731,1708719061065,-1034.24,0.00030136,2]
[314994732,1708719061074,-2164.75,0.00030136,2]
[314994733,1708719061083,-1226.41,0.00030136,2]
[314994734,1708719061094,-4390.56,0.00030136,2]
[314994735,1708719061105,-748.66,0.00030136,2]
[314994736,1708719061114,-677.35,0.00030136,2]
[314994737,1708719061124,-150.18,0.00030137,2]
[314994738,1708719061134,-151.0,0.00030172,120]
[314994739,1708719061341,-203.0,0.00030187,2]
[314994740,1708719061352,-223.814295,0.00030223,2]
[314994741,1708719061362,-152.546292,0.00030223,2]
[314994742,1708719061371,-155.007164,0.00030223,2]
[314994743,1708719061381,-169.495879,0.00030223,2]
[314994744,1708719061391,-500.0,0.00030273,2]
[314994745,1708719061400,-530.13,0.00030273,2]
[314994746,1708719061410,-749.44,0.00030273,2]
[314994747,1708719061420,-569.85,0.00030273,2]
[314994748,1708719061429,-792.79,0.00030273,2]
[314994749,1708719061439,-670.47,0.00030273,2]
[314994750,1708719061448,-620.91,0.00030273,2]
[314994751,1708719061458,-500.0,0.00030273,2]
[314994752,1708719061468,-637.71,0.00030273,2]
[314994753,1708719061478,-616.52,0.00030273,2]
[314994754,1708719061488,-783.78,0.00030273,2]
[314994755,1708719061498,-1246.55,0.00030273,2]
[314994756,1708719061507,-500.0,0.00030273,2]
[314994757,1708719061517,-832.75,0.00030273,2]
[314994758,1708719061527,-1577.02,0.00030273,2]
[314994759,1708719061536,-894.62,0.00030273,2]
[314994760,1708719061546,-711.78,0.00030273,2]
[314994761,1708719061555,-896.26,0.00030273,2]
[314994762,1708719061566,-578.28,0.00030273,2]
[314994763,1708719061575,-2223.06,0.00030273,2]
[314994764,1708719061585,-640.46,0.00030273,2]
[314994765,1708719061595,-500.0,0.00030273,2]
[314994766,1708719061605,-1048.34,0.00030273,2]
[314994767,1708719061614,-1844.58,0.00030273,2]
[314994768,1708719061624,-1034.24,0.00030273,2]
[314994769,1708719061633,-2164.75,0.00030273,2]
[314994770,1708719061642,-1226.41,0.00030273,2]
[314994771,1708719061651,-4390.56,0.00030273,2]
[314994772,1708719061661,-748.66,0.00030273,2]
[314994773,1708719061670,-500.0,0.0003041,2]
[314994774,1708719061679,-530.13,0.0003041,2]
[314994775,1708719061689,-749.44,0.0003041,2]
[314994776,1708719061699,-569.85,0.0003041,2]
[314994777,1708719061708,-792.79,0.0003041,2]
[314994778,1708719061717,-670.47,0.0003041,2]
[314994779,1708719061727,-620.91,0.0003041,2]
[314994780,1708719061737,-168.79617508,0.0003041,2]
[314994781,1708719061747,-637.71,0.0003041,2]
[314994782,1708719061758,-616.52,0.0003041,2]
[314994783,1708719061767,-783.78,0.0003041,2]
[314994784,1708719061777,-1246.55,0.0003041,2]
[314994785,1708719061787,-394.58514042,0.0003041,2]
[314994786,1708719061796,-832.75,0.0003041,2]
[314994787,1708719061806,-1577.02,0.0003041,2]
[314994788,1708719061816,-894.62,0.0003041,2]
[314994789,1708719061825,-711.78,0.0003041,2]
[314994790,1708719061834,-896.26,0.0003041,2]
[314994791,1708719061844,-578.28,0.0003041,2]
[314994792,1708719061853,-2223.06,0.0003041,2]
[314994793,1708719061863,-640.46,0.0003041,2]
[314994794,1708719061872,-286.2,0.0003041,2]
[314994795,1708719061882,-1048.34,0.0003041,2]
[314994796,1708719061892,-1844.58,0.0003041,2]
[314994797,1708719061902,-1034.24,0.0003041,2]
[314994798,1708719061911,-2164.75,0.0003041,2]
[314994799,1708719061921,-1226.41,0.0003041,2]
[314994800,1708719061934,-4390.56,0.0003041,2]
[314994801,1708719061944,-748.66,0.0003041,2]
[314994802,1708719061953,-186.511912,0.00030468,2]
[314994803,1708719061963,-200.0,0.000305,3]
[314994804,1708719061974,-311.0,0.000305,19]
[314994805,1708719061983,-500.0,0.00030547,2]
[314994806,1708719061993,-530.25658732,0.00030547,2]
[314994807,1708719062003,-749.49,0.00030547,2]
[314994808,1708719062015,-569.92832168,0.00030547,2]
[314994809,1708719062025,-792.8,0.00030547,2]
[314994810,1708719062035,-670.524881,0.00030547,2]
[314994811,1708719062044,-620.98,0.00030547,2]
[314994812,1708719062054,-637.76,0.00030547,2]
[314994813,1708719062064,-616.62,0.00030547,2]
[314994814,1708719062073,-783.94,0.00030547,2]
[314994815,1708719062083,-1246.56,0.00030547,2]
[314994816,1708719062097,-832.84999999,0.00030547,2]
[314994817,1708719062106,-1577.08,0.00030547,2]
[314994818,1708719062116,-894.62,0.00030547,2]
[314994819,1708719062126,-711.86,0.00030547,2]
[314994820,1708719062135,-896.30001316,0.00030547,2]
[314994821,1708719062145,-578.28566989,0.00030547,2]
[314994822,1708719062154,-2223.15,0.00030547,2]
[314994823,1708719062164,-640.64890731,0.00030547,2]
[314994824,1708719062174,-1048.52,0.00030547,2]
[314994825,1708719062184,-1844.58,0.00030547,2]
[314994826,1708719062193,-1034.33,0.00030547,2]
[314994827,1708719062203,-1226.56,0.00030547,2]
[314994828,1708719062213,-2164.79,0.00030547,2]
[314994829,1708719062223,-4390.63,0.00030547,2]
[314994830,1708719062233,-748.79969602,0.00030547,2]
[314994831,1708719062244,-8177.0,0.00030563,2]
[314994832,1708719062254,-2932.0,0.00030563,2]
[314994833,1708719062264,-19879.0,0.00030563,2]
[314994834,1708719062273,-5635.316,0.00030563,2]
[314994835,1708719062287,-2295.0,0.00030563,2]
[314994836,1708719062298,-7429.0,0.00030563,2]
[314994837,1708719062308,-4107.0,0.00030563,2]
[314994838,1708719062317,-33527.319,0.00030563,2]
[314994839,1708719062327,-223.814295,0.00030591,2]
[314994840,1708719062336,-152.546292,0.00030591,2]
[314994841,1708719062346,-155.007164,0.00030591,2]
[314994842,1708719062355,-72303.69065257,0.00030593,7]
[314994843,1708719062365,-22997.93775669,0.00030593,7]
[314994844,1708719062375,-10924.02043443,0.00030593,7]
[314994845,1708719062385,-13175.45724118,0.00030593,7]
[314994846,1708719062394,-161.0,0.00030681,2]
[314994847,1708719062404,-500.0,0.00030684,2]
[314994848,1708719062413,-3249.67,0.00030708,2]
[314994849,1708719062422,-150.18,0.00030746,2]
[314994850,1708719062432,-151.0,0.00030787,30]
[314994851,1708719062441,-500.0,0.00030821,2]
[314994852,1708719062451,-500.0,0.00030958,2]
[314994853,1708719062461,-186.511912,0.0003096,2]
[314994854,1708719062471,-223.814295,0.0003096,2]
[314994855,1708719062481,-152.546292,0.0003096,2]
[314994856,1708719062490,-155.007164,0.0003096,2]
[314994857,1708719062500,-169.495879,0.0003096,2]
[314994858,1708719062509,-200.0,0.00031,3]
[314994859,1708719062518,-200.0,0.00031,2]
[314994860,1708719062528,-616.0,0.00031,19]
[314994861,1708719062537,-1500.0,0.00031,4]
[314994862,1708719062547,-900.0,0.00031,3]
[314994863,1708719062557,-310.18,0.00031,2]
[314994864,1708719062567,-4000.0,0.00031,2]
[314994865,1708719062576,-158.53,0.00031045,2]
[314994866,1708719062586,-811.19,0.00031094,2]
[314994867,1708719062596,-500.0,0.00031095,2]
[314994868,1708719062606,-12687.0,0.000311,2]
[314994869,1708719062616,-2665.0,0.000311,2]
[314994870,1708719062625,-2695.0,0.00031165,2]
[314994871,1708719062634,-955.0,0.00031165,2]
[314994872,1708719062643,-458.0,0.00031165,2]
[314994873,1708719062652,-203.663,0.00031165,2]
[314994874,1708719062662,-168.788,0.00031165,2]
[314994875,1708719062671,-1256.0,0.00031165,2]
[314994876,1708719062680,-521.148,0.00031165,2]
[314994877,1708719062689,-1231.0,0.00031165,2]
[314994878,1708719062698,-430.0,0.00031165,2]
[314994879,1708719062707,-859.0,0.00031165,2]
[314994880,1708719062716,-276.0,0.00031165,2]
[314994881,1708719062726,-2891.0,0.00031165,2]
[314994882,1708719062735,-1138.0,0.00031165,2]
[314994883,1708719062745,-321.0,0.00031165,2]
[314994884,1708719062754,-343.0,0.00031165,2]
[314994885,1708719062763,-150.0,0.00031165,2]
[314994886,1708719062773,-454.0,0.00031165,2]
[314994887,1708719062782,-500.0,0.00031232,2]
[314994888,1708719062792,-17042.69633286,0.00031341,2]
[314994889,1708719062801,-5746.99589315,0.00031341,2]
[314994890,1708719062811,-150.18,0.00031355,2]
[314994891,1708719062820,-488.66666873,0.00031369,2]
[314994892,1708719062830,-150.0,0.00031369,7]
[314994893,1708719062839,-652.216,0.00031369,7]
[314994894,1708719062848,-151.0,0.00031416,7]
[314994895,1708719062857,-200.0,0.000315,4]
[314994896,1708719062868,-224.16,0.00031644,2]
[314994897,1708719062877,-43289.37322111,0.000318,3]
[314994898,1708719063101,-677.35,0.00030273,2]
[314994899,1708719063111,-72.88006057,0.000318,3]
[314994900,1708719063122,-741.27723955,0.000318,3]
[314994901,1708719063134,-420.8888349,0.000318,3]
[314994902,1708719063145,-313.89851893,0.000318,3]
[314994903,1708719063170,-344.80025657,0.00027534,2]
[314994904,1708719063183,-155.19974343,0.00027534,2]
[314994905,1708719063194,-202.75169861,0.0002863,2]
[314994906,1708719063226,-148.47755073,0.0002863,2]
[314994907,1708719063706,-500.0,0.00027397,2]
[314994908,1708719063715,-500.0,0.00027397,2]
[314994909,1708719063726,-269.73,0.00027397,10]
[314994910,1708719063736,-500.0,0.00027534,2]
[314994911,1708719063747,-500.0,0.00027671,2]
[314994912,1708719063758,-500.0,0.00027808,2]
[314994913,1708719063769,-166.86075066,0.0002863,2]
[314994914,1708719063779,-23.05398113,0.00028767,2]
[314994915,1708719063792,-427.17939827,0.00028767,2]
[314994916,1708719063804,-67.8566206,0.00028767,2]
[314994917,1708719063816,-185.9856927,0.00028904,2]
[314994918,1708719063946,-500.0,0.00027397,2]
[314994919,1708719063957,-332.1043073,0.00028904,2]
[314994920,1708719063967,-518.09,0.00029041,2]
[314994921,1708719063978,-163.0691733,0.00029178,2]
[314994922,1708719063989,-355.0208267,0.00029178,2]
[314994923,1708719064000,-518.09,0.00029315,2]
[314994924,1708719064011,-518.09,0.00029452,2]
[314994925,1708719064020,-176.58098662,0.00029589,2]
[314994926,1708719064031,-341.50901338,0.00029589,2]
[314994927,1708719064041,-518.09,0.00029726,2]
[314994928,1708719064051,-518.09,0.00029863,2]
[314994929,1708719064060,-518.09,0.00029999,2]
[314994930,1708719064069,-518.09,0.00030136,2]
[314994931,1708719064078,-518.09,0.00030273,2]
[314994932,1708719064087,-677.35,0.0003041,2]
[314994933,1708719064096,-518.09,0.0003041,2]
[314994934,1708719064105,-677.44,0.00030547,2]
[314994935,1708719064114,-518.09,0.00030547,2]
[314994936,1708719064124,-5204.20088663,0.000318,3]
[314994937,1708719064135,-2347.00560183,0.000318,3]
[314994938,1708719064147,-7649.47219396,0.000318,3]
[314994939,1708719064158,-2384.2861459,0.000318,3]
[314994940,1708719064333,-231.08,0.00026854,2]
[314994941,1708719064343,-500.0,0.00027397,2]
[314994942,1708719064353,-379.93089509,0.000318,3]
[314994943,1708719064364,-549.39783028,0.000318,3]
[314994944,1708719064375,-9740.59414593,0.000318,3]
[314994950,1708720014311,169.29,0.00016712,2]
[314994960,1708720231610,-765.99,0.00024855,2]
[314994961,1708720231621,-2000.0,0.00026587,2]
[314994962,1708720231631,-6944.61,0.00026645,2]
[314994963,1708720231641,-150.0,0.00026771,2]
[314994964,1708720231652,-1786.48,0.00026772,2]
[314994965,1708720231662,-200.0,0.00026772,2]
[314994966,1708720231672,-250.0,0.00026805,2]
[314994967,1708720231682,-1037.57,0.0002681,2]
[314994968,1708720231692,-150.0,0.00026884,2]
[314994969,1708720231702,-5768.12,0.00026939,2]
[314994970,1708720231712,-726.05245459,0.00027012,2]
[314994971,1708720231728,-560.81754541,0.00027012,2]
[314994972,1708720231739,-11641.94,0.00027021,2]
[314994973,1708720231749,-999.99,0.00027021,2]
[314994974,1708720231759,-2007.55,0.00027031,2]
[314994975,1708720231771,-299.99,0.00027031,12]
[314994976,1708720231781,-553.28,0.00027031,2]
[314994977,1708720231791,-9459.58943584,0.00027119,2]
[314994978,1708720232040,-540.40056416,0.00027119,2]
[314994979,1708720232051,-690.39,0.00027119,2]
[314994980,1708720232061,-11.96551899,0.00027119,2]
[314994981,1708720232073,-578.10578071,0.00027119,2]
[314994982,1708720232085,-110.5487003,0.00027119,2]
[314994983,1708720232094,-765.99,0.00027119,2]
[314994984,1708720232104,-368.0,0.00027254,2]
[314994985,1708720232114,-150.99,0.00027297,2]
[314994986,1708720232123,-530.88,0.00027297,2]
[314994987,1708720232133,-1375.84025933,0.00027297,2]
[314994988,1708720232143,-956.42769225,0.00027297,2]
[314994989,1708720232156,-419.41256709,0.00027297,2]
[314994990,1708720232166,-680.0198,0.00027297,2]
[314994991,1708720232177,-155.0,0.00027395,2]
[314994992,1708720232186,-501.48475793,0.00027397,2]
[314994993,1708720232197,-500.0,0.00027397,2]
[314994994,1708720232207,-500.0,0.00027397,2]
[314994995,1708720232217,-500.0,0.00027397,2]
[314994996,1708720232227,-545.05284031,0.00027397,2]
[314994997,1708720232237,-500.0,0.00027397,2]
[314994998,1708720232247,-500.0,0.00027397,2]
[314994999,1708720232257,-500.0,0.00027397,2]
[314995000,1708720232267,-500.0,0.00027397,2]
[314995001,1708720232277,-500.0,0.00027397,2]
[314995002,1708720232286,-500.0,0.00027397,2]
[314995003,1708720232299,-644.47390828,0.00027397,2]
[314995004,1708720232310,-500.0,0.00027397,2]
[314995005,1708720232321,-2218.5,0.00027397,2]
[314995006,1708720232331,-499.99,0.00027397,2]
[314995007,1708720232343,-150.99,0.00027397,2]
[314995008,1708720232353,-150.0,0.00027397,7]
[314995009,1708720232363,-581.61,0.00027397,2]
[314995010,1708720232373,-1261.52425531,0.000274,2]
[314995011,1708720232385,-3792.50541426,0.00027434,2]
[314995012,1708720232395,-715.62,0.00027504,2]
[314995013,1708720232406,-409.57,0.00027514,10]
[314995014,1708720232416,-341.31,0.00027514,10]
[314995015,1708720232426,-284.43,0.00027514,10]
[314995016,1708720232436,-237.02,0.00027514,10]
[314995017,1708720232446,-60634.2450085,0.00027524,2]
[314995018,1708720232456,-500.0,0.00027534,2]
[314995019,1708720232466,-500.0,0.00027534,2]
[314995020,1708720232477,-500.0,0.00027534,2]
[314995021,1708720232486,-500.0,0.00027534,2]
[314995022,1708720232497,-500.0,0.00027534,2]
[314995023,1708720232506,-500.0,0.00027534,2]
[314995024,1708720232516,-500.0,0.00027534,2]
[314995025,1708720232527,-500.0,0.00027534,2]
[314995026,1708720232538,-581.61,0.00027556,2]
[314995027,1708720232548,-715.62,0.00027579,2]
[314995028,1708720232558,-150.0,0.00027644,7]
[314995029,1708720232568,-715.62,0.00027655,2]
[314995030,1708720232578,-500.0,0.00027671,2]
[314995031,1708720232589,-500.0,0.00027671,2]
[314995032,1708720232598,-273.87,0.00027671,2]
[314995033,1708720232608,-500.0,0.00027671,2]
[314995034,1708720232618,-500.0,0.00027671,2]
[314995035,1708720232628,-500.0,0.00027671,2]
[314995036,1708720232638,-213.25,0.00027671,2]
[314995037,1708720232648,-171.97,0.00027706,2]
[314995038,1708720232658,-2705.0,0.0002771,2]
[314995039,1708720232668,-200.0,0.0002771,2]
[314995040,1708720232680,-581.61,0.00027714,2]
[314995041,1708720233033,-500.0,0.00027722,2]
[314995042,1708720233050,-502.12,0.00027723,2]
[314995043,1708720233061,-715.62,0.0002773,2]
[314995044,1708720233070,-500.0,0.00027744,2]
[314995045,1708720233082,-715.62,0.00027805,2]